[Event "Live Chess"]
[Site "Chess.com"]
[Date "2023.05.21"]
[Round "-"]
[White "jumush"]
[Black "mliszewski"]
[Result "1-0"]
[WhiteElo "1761"]
[BlackElo "1804"]
[TimeControl "300"]
[EndTime "5:17:30 PDT"]
[Termination "jumush won by checkmate"]

1. e4 {[%clk 0:04:56.2]} 1... c6 {[%clk 0:04:57.4]} 2. d4 {[%clk 0:04:53.9]}
2... d5 {[%clk 0:04:57.3]} 3. exd5 {[%clk 0:04:52.5]} 3... cxd5 {[%clk
0:04:56.5]} 4. Nf3 {[%clk 0:04:51.1]} 4... Nc6 {[%clk 0:04:54.2]} 5. Bb5 {[%clk
0:04:48.4]} 5... Nf6 {[%clk 0:04:52.5]} 6. Ne5 {[%clk 0:04:46.6]} 6... Bd7
{[%clk 0:04:50.6]} 7. Nxd7 {[%clk 0:04:44.5]} 7... Qxd7 {[%clk 0:04:49.7]} 8. c3
{[%clk 0:04:43]} 8... e6 {[%clk 0:04:48.9]} 9. O-O {[%clk 0:04:41.3]} 9... Be7
{[%clk 0:04:45.6]} 10. Re1 {[%clk 0:04:39.7]} 10... O-O {[%clk 0:04:44.7]} 11.
Nd2 {[%clk 0:04:37.9]} 11... a6 {[%clk 0:04:43.8]} 12. Bd3 {[%clk 0:04:36.4]}
12... b5 {[%clk 0:04:41.6]} 13. Nf3 {[%clk 0:04:34.7]} 13... Rfc8 {[%clk
0:04:37.4]} 14. Ne5 {[%clk 0:04:32.6]} 14... Qe8 {[%clk 0:04:34.8]} 15. Qf3
{[%clk 0:04:20.2]} 15... b4 {[%clk 0:04:32.1]} 16. Qh3 {[%clk 0:04:14.8]} 16...
bxc3 {[%clk 0:04:27.5]} 17. bxc3 {[%clk 0:04:13]} 17... Na5 {[%clk 0:04:23.5]}
18. Bg5 {[%clk 0:04:04.1]} 18... h6 {[%clk 0:04:19.3]} 19. Bd2 {[%clk
0:03:54.8]} 19... Nb7 {[%clk 0:04:10.7]} 20. Bc2 {[%clk 0:03:51.8]} 20... Nd6
{[%clk 0:04:08.2]} 21. Qd3 {[%clk 0:03:49.3]} 21... Nde4 {[%clk 0:04:07.4]} 22.
f3 {[%clk 0:03:45]} 22... Nxd2 {[%clk 0:04:02.8]} 23. Qxd2 {[%clk 0:03:42.9]}
23... Qb5 {[%clk 0:03:57.5]} 24. Rab1 {[%clk 0:03:39.3]} 24... Qa5 {[%clk
0:03:55.6]} 25. Rb7 {[%clk 0:03:33.8]} 25... Rc7 {[%clk 0:03:45]} 26. Rxc7
{[%clk 0:03:28]} 26... Qxc7 {[%clk 0:03:43.9]} 27. Re3 {[%clk 0:03:26.3]} 27...
Rc8 {[%clk 0:03:42.5]} 28. g4 {[%clk 0:03:23.9]} 28... Nd7 {[%clk 0:03:29.5]}
29. Qd3 {[%clk 0:03:15]} 29... Nxe5 {[%clk 0:03:27.4]} 30. Qh7+ {[%clk 0:03:13]}
30... Kf8 {[%clk 0:03:26.3]} 31. Qh8# {[%clk 0:03:11.2]} 1-0

[Event "Live Chess"]
[Site "Chess.com"]
[Date "2023.05.21"]
[Round "-"]
[White "diana21strabt"]
[Black "zdanevych"]
[Result "1-0"]
[WhiteElo "1750"]
[BlackElo "1527"]
[TimeControl "300"]
[EndTime "5:17:36 PDT"]
[Termination "diana21strabt won by resignation"]

1. e4 {[%clk 0:04:58.3]} 1... c5 {[%clk 0:04:58.8]} 2. Nf3 {[%clk 0:04:56.9]}
2... e6 {[%clk 0:04:58]} 3. d4 {[%clk 0:04:55.7]} 3... d5 {[%clk 0:04:57.4]} 4.
exd5 {[%clk 0:04:53.2]} 4... exd5 {[%clk 0:04:56.9]} 5. Nc3 {[%clk 0:04:50]}
5... Nc6 {[%clk 0:04:54.2]} 6. dxc5 {[%clk 0:04:48.8]} 6... Nf6 {[%clk
0:04:49.6]} 7. Bg5 {[%clk 0:04:45.6]} 7... Bxc5 {[%clk 0:04:45.5]} 8. Bxf6
{[%clk 0:04:40.5]} 8... Qxf6 {[%clk 0:04:45.4]} 9. Qxd5 {[%clk 0:04:36.5]} 9...
Bb6 {[%clk 0:04:26.1]} 10. Bb5 {[%clk 0:04:29.6]} 10... O-O {[%clk 0:04:24.3]}
11. O-O {[%clk 0:04:26.7]} 11... Be6 {[%clk 0:04:19.3]} 12. Qg5 {[%clk
0:04:12.1]} 12... Qf5 {[%clk 0:03:54.4]} 13. Qxf5 {[%clk 0:04:03]} 13... Bxf5
{[%clk 0:03:54.3]} 14. Bxc6 {[%clk 0:04:01.9]} 14... bxc6 {[%clk 0:03:52.4]} 15.
Rac1 {[%clk 0:03:58.6]} 15... h6 {[%clk 0:03:37.1]} 16. h3 {[%clk 0:03:46.7]}
16... Rfe8 {[%clk 0:03:34.8]} 17. Rfe1 {[%clk 0:03:41.7]} 17... Rad8 {[%clk
0:03:32.4]} 18. Rxe8+ {[%clk 0:03:39.9]} 18... Rxe8 {[%clk 0:03:31.7]} 19. Kf1
{[%clk 0:03:36.9]} 19... Rd8 {[%clk 0:03:17.7]} 20. g4 {[%clk 0:03:31.7]} 20...
Bg6 {[%clk 0:03:16.4]} 21. Ne5 {[%clk 0:03:27]} 21... Bh7 {[%clk 0:03:08.4]} 22.
Nc4 {[%clk 0:03:22.1]} 22... Bc7 {[%clk 0:03:04.6]} 23. Ne3 {[%clk 0:03:10.8]}
23... Bf4 {[%clk 0:03:03.1]} 24. Ke2 {[%clk 0:03:09.5]} 24... f5 {[%clk
0:02:50.4]} 25. gxf5 {[%clk 0:02:51.5]} 25... Bxf5 {[%clk 0:02:50.3]} 26. h4
{[%clk 0:02:36.3]} 26... Bg4+ {[%clk 0:02:41.8]} 27. f3 {[%clk 0:02:31.1]} 27...
Bh5 {[%clk 0:02:35]} 28. Rg1 {[%clk 0:02:24.3]} 28... Re8 {[%clk 0:02:31.6]} 29.
Nd1 {[%clk 0:02:20.1]} 29... Bf7 {[%clk 0:02:25.3]} 30. b3 {[%clk 0:02:17]}
30... g5 {[%clk 0:02:15.4]} 31. hxg5 {[%clk 0:02:15.1]} 31... hxg5 {[%clk
0:02:15.3]} 32. Kf2 {[%clk 0:02:09.3]} 32... Bg6 {[%clk 0:02:08.9]} 33. c4
{[%clk 0:01:45.7]} 33... Rd8 {[%clk 0:02:02.5]} 34. Ng4 {[%clk 0:01:21.7]} 34...
Rd2+ {[%clk 0:01:54]} 35. Ke1 {[%clk 0:01:18.6]} 35... Rxa2 {[%clk 0:01:43.4]}
36. Nf6+ {[%clk 0:01:17]} 36... Kf7 {[%clk 0:01:38.5]} 37. Ne4 {[%clk
0:01:15.7]} 37... Ra1 {[%clk 0:01:23.5]} 38. Ke2 {[%clk 0:01:10]} 38... Ke7
{[%clk 0:01:18.7]} 39. Nxg5 {[%clk 0:01:06.1]} 39... Ra2+ {[%clk 0:01:11.5]} 40.
Kf1 {[%clk 0:00:47]} 40... Bd3+ {[%clk 0:01:09.5]} 41. Ke1 {[%clk 0:00:45.5]}
41... Bd2+ {[%clk 0:01:03.6]} 42. Kf2 {[%clk 0:00:43.7]} 42... Bxg5+ {[%clk
0:00:54]} 43. Kg3 {[%clk 0:00:42.7]} 43... Bf6 {[%clk 0:00:49.5]} 44. Nf2 {[%clk
0:00:40.7]} 44... Bc2 {[%clk 0:00:46.9]} 45. Re1+ {[%clk 0:00:39]} 45... Kf7
{[%clk 0:00:45.4]} 46. Ng4 {[%clk 0:00:35.5]} 46... Bxb3 {[%clk 0:00:43.7]} 47.
Rb1 {[%clk 0:00:31.9]} 47... Ra3 {[%clk 0:00:37.6]} 48. c5 {[%clk 0:00:29.2]}
48... Bd5 {[%clk 0:00:34.3]} 49. Rb7+ {[%clk 0:00:27.6]} 49... Ke6 {[%clk
0:00:33.9]} 50. Nh2 {[%clk 0:00:21.6]} 50... Be5+ {[%clk 0:00:31.7]} 51. Kg2
{[%clk 0:00:20.7]} 51... Bxh2 {[%clk 0:00:30.4]} 52. Kxh2 {[%clk 0:00:19.9]}
52... Rxf3 {[%clk 0:00:29.7]} 53. Rxa7 {[%clk 0:00:19]} 53... Rc3 {[%clk
0:00:27.9]} 54. Ra5 {[%clk 0:00:17.7]} 54... Ke5 {[%clk 0:00:27.4]} 55. Kg1
{[%clk 0:00:13.1]} 55... Kd4 {[%clk 0:00:26.9]} 56. Ra4+ {[%clk 0:00:12]} 56...
Rc4 {[%clk 0:00:26]} 57. Ra6 {[%clk 0:00:11.6]} 57... Rxc5 {[%clk 0:00:25.1]}
58. Ra8 {[%clk 0:00:10.2]} 58... Rb5 {[%clk 0:00:24.3]} 59. Rd8 {[%clk
0:00:09.3]} 59... Rb7 {[%clk 0:00:23.2]} 60. Kf2 {[%clk 0:00:08.8]} 60... Rc7
{[%clk 0:00:22.6]} 61. Ke2 {[%clk 0:00:07.8]} 61... Kc3 {[%clk 0:00:20.9]} 62.
Ke3 {[%clk 0:00:06.6]} 62... Kb2 {[%clk 0:00:20.2]} 63. Kd2 {[%clk 0:00:05.6]}
63... Ba2 {[%clk 0:00:17.2]} 64. Rb8+ {[%clk 0:00:05]} 64... Ka3 {[%clk
0:00:15]} 65. Kc3 {[%clk 0:00:04.4]} 65... c5 {[%clk 0:00:12.6]} 66. Ra8+ {[%clk
0:00:03.3]} 1-0

[Event "Live Chess"]
[Site "Chess.com"]
[Date "2023.05.21"]
[Round "-"]
[White "AMCWAML"]
[Black "wot-not"]
[Result "1-0"]
[WhiteElo "2323"]
[BlackElo "1537"]
[TimeControl "300"]
[EndTime "5:17:41 PDT"]
[Termination "AMCWAML won by resignation"]

1. e4 {[%clk 0:04:58.8]} 1... e6 {[%clk 0:04:57.9]} 2. d4 {[%clk 0:04:57.8]}
2... d5 {[%clk 0:04:57]} 3. Nc3 {[%clk 0:04:56.8]} 3... Nf6 {[%clk 0:04:55.2]}
4. e5 {[%clk 0:04:55.3]} 4... Nfd7 {[%clk 0:04:53.6]} 5. f4 {[%clk 0:04:55]}
5... c5 {[%clk 0:04:53.1]} 6. Nf3 {[%clk 0:04:54.2]} 6... Nc6 {[%clk 0:04:52.4]}
7. Be3 {[%clk 0:04:52.6]} 7... cxd4 {[%clk 0:04:51.5]} 8. Nxd4 {[%clk
0:04:50.2]} 8... Nxd4 {[%clk 0:04:50.5]} 9. Bxd4 {[%clk 0:04:49.2]} 9... Bc5
{[%clk 0:04:48.5]} 10. Bb5 {[%clk 0:04:38.3]} 10... Bxd4 {[%clk 0:04:46.3]} 11.
Qxd4 {[%clk 0:04:36.3]} 11... O-O {[%clk 0:04:45.4]} 12. O-O {[%clk 0:04:33]}
12... Nb6 {[%clk 0:04:41.9]} 13. Rad1 {[%clk 0:04:21.8]} 13... Bd7 {[%clk
0:04:40.3]} 14. Bd3 {[%clk 0:04:20.3]} 14... Rc8 {[%clk 0:04:35.7]} 15. Rf3
{[%clk 0:04:11.9]} 15... Nc4 {[%clk 0:04:33.6]} 16. Qf2 {[%clk 0:03:14.9]} 16...
Nxb2 {[%clk 0:04:22.5]} 17. Bxh7+ {[%clk 0:03:11.2]} 17... Kxh7 {[%clk
0:04:13.4]} 18. Rh3+ {[%clk 0:03:03.9]} 18... Kg8 {[%clk 0:04:03]} 19. Rb1
{[%clk 0:02:51.1]} 19... Na4 {[%clk 0:03:47.2]} 20. Nd1 {[%clk 0:02:39.7]} 20...
b5 {[%clk 0:03:35.1]} 21. Qe2 {[%clk 0:02:34.5]} 21... f6 {[%clk 0:02:56.8]} 22.
Rbb3 {[%clk 0:02:27.6]} 22... Kf7 {[%clk 0:02:46.1]} 23. Rbg3 {[%clk 0:02:25.2]}
23... f5 {[%clk 0:02:32]} 24. Qh5+ {[%clk 0:02:22.8]} 24... Ke7 {[%clk
0:02:30.5]} 25. Rxg7+ {[%clk 0:02:21.2]} 1-0

[Event "Live Chess"]
[Site "Chess.com"]
[Date "2023.05.21"]
[Round "-"]
[White "Crowded_House"]
[Black "AbilifyXL"]
[Result "0-1"]
[WhiteElo "1608"]
[BlackElo "1963"]
[TimeControl "300"]
[EndTime "5:17:47 PDT"]
[Termination "AbilifyXL won by resignation"]

1. d4 {[%clk 0:04:59]} 1... d5 {[%clk 0:04:59.9]} 2. Bg5 {[%clk 0:04:57.2]} 2...
c6 {[%clk 0:04:59]} 3. c3 {[%clk 0:04:53.6]} 3... Bf5 {[%clk 0:04:56.4]} 4. e3
{[%clk 0:04:51.3]} 4... Nd7 {[%clk 0:04:54.9]} 5. Bd3 {[%clk 0:04:50.3]} 5...
Bg6 {[%clk 0:04:53.9]} 6. Nf3 {[%clk 0:04:47]} 6... Ngf6 {[%clk 0:04:52.1]} 7.
Qc2 {[%clk 0:04:46.2]} 7... e6 {[%clk 0:04:51.1]} 8. Nbd2 {[%clk 0:04:44.6]}
8... Be7 {[%clk 0:04:50.1]} 9. O-O {[%clk 0:04:42.7]} 9... O-O {[%clk
0:04:49.2]} 10. Rfe1 {[%clk 0:04:40.8]} 10... Rc8 {[%clk 0:04:48.2]} 11. e4
{[%clk 0:04:40]} 11... dxe4 {[%clk 0:04:47.5]} 12. Nxe4 {[%clk 0:04:38.6]} 12...
Nxe4 {[%clk 0:04:44.2]} 13. Bxe4 {[%clk 0:04:37.7]} 13... Bxg5 {[%clk
0:04:42.9]} 14. Bxg6 {[%clk 0:04:34.8]} 14... hxg6 {[%clk 0:04:41.9]} 15. Nxg5
{[%clk 0:04:33.3]} 15... Qxg5 {[%clk 0:04:41]} 16. h3 {[%clk 0:04:23.2]} 16...
Qd5 {[%clk 0:04:34.4]} 17. Re4 {[%clk 0:04:11.3]} 17... c5 {[%clk 0:04:30.9]}
18. dxc5 {[%clk 0:04:06.2]} 18... Nxc5 {[%clk 0:04:26.7]} 19. Rd1 {[%clk
0:04:01.3]} 19... Qxe4 {[%clk 0:04:25]} 20. Qxe4 {[%clk 0:03:58.4]} 20... Nxe4
{[%clk 0:04:24.2]} 0-1

[Event "Live Chess"]
[Site "Chess.com"]
[Date "2023.05.21"]
[Round "-"]
[White "1600x"]
[Black "Leonid_Starozhilov"]
[Result "0-1"]
[WhiteElo "1870"]
[BlackElo "2633"]
[TimeControl "300"]
[EndTime "5:17:52 PDT"]
[Termination "Leonid_Starozhilov won by checkmate"]

1. d4 {[%clk 0:04:52.9]} 1... Nf6 {[%clk 0:04:57.3]} 2. c4 {[%clk 0:04:50.6]}
2... g6 {[%clk 0:04:56.3]} 3. d5 {[%clk 0:04:45.2]} 3... Bg7 {[%clk 0:04:55.1]}
4. Nc3 {[%clk 0:04:38.8]} 4... O-O {[%clk 0:04:53.2]} 5. e4 {[%clk 0:04:34.7]}
5... d6 {[%clk 0:04:50.7]} 6. Nf3 {[%clk 0:04:32.2]} 6... e5 {[%clk 0:04:46.1]}
7. Bd3 {[%clk 0:04:27.6]} 7... Nh5 {[%clk 0:04:44.6]} 8. O-O {[%clk 0:04:24.1]}
8... a5 {[%clk 0:04:37.7]} 9. h3 {[%clk 0:04:21.4]} 9... Na6 {[%clk 0:04:36.5]}
10. Bg5 {[%clk 0:04:16.6]} 10... Qe8 {[%clk 0:04:33.7]} 11. Be3 {[%clk
0:04:11.9]} 11... f5 {[%clk 0:04:15.9]} 12. Bg5 {[%clk 0:04:00.6]} 12... f4
{[%clk 0:04:12.3]} 13. Bh4 {[%clk 0:03:57.3]} 13... h6 {[%clk 0:04:09.5]} 14.
Be2 {[%clk 0:03:54.1]} 14... Nc5 {[%clk 0:04:03.3]} 15. Ne1 {[%clk 0:03:52.2]}
15... Nf6 {[%clk 0:04:01.4]} 16. f3 {[%clk 0:03:48.7]} 16... g5 {[%clk
0:04:00.4]} 17. Bf2 {[%clk 0:03:47]} 17... b6 {[%clk 0:03:58.7]} 18. Nd3 {[%clk
0:03:44.8]} 18... h5 {[%clk 0:03:57.4]} 19. Nxc5 {[%clk 0:03:42.9]} 19... bxc5
{[%clk 0:03:56]} 20. Nb5 {[%clk 0:03:40.7]} 20... Qf7 {[%clk 0:03:44.7]} 21. Re1
{[%clk 0:03:38.8]} 21... Ba6 {[%clk 0:03:38.9]} 22. Nc3 {[%clk 0:03:34.6]} 22...
Qg6 {[%clk 0:03:35.4]} 23. Rf1 {[%clk 0:03:32.4]} 23... Bc8 {[%clk 0:03:32]} 24.
b3 {[%clk 0:03:30.4]} 24... g4 {[%clk 0:03:29.8]} 25. h4 {[%clk 0:03:26.7]}
25... gxf3 {[%clk 0:03:27.1]} 26. Bxf3 {[%clk 0:03:24.4]} 26... Ng4 {[%clk
0:03:26]} 27. Qc2 {[%clk 0:03:22.5]} 27... Bd7 {[%clk 0:03:22.5]} 28. Rac1
{[%clk 0:03:20.3]} 28... Bf6 {[%clk 0:03:21.2]} 29. Rfe1 {[%clk 0:03:18.6]}
29... Kh8 {[%clk 0:03:17.2]} 30. Nb5 {[%clk 0:03:15.8]} 30... Bxb5 {[%clk
0:03:15.6]} 31. cxb5 {[%clk 0:03:14.2]} 31... Rg8 {[%clk 0:03:15.3]} 32. a4
{[%clk 0:03:11.3]} 32... Qf7 {[%clk 0:03:13.6]} 33. Rf1 {[%clk 0:03:07.3]} 33...
Qe7 {[%clk 0:03:11.2]} 34. Bxg4 {[%clk 0:03:05.8]} 34... Rxg4 {[%clk 0:03:09.7]}
35. Be1 {[%clk 0:03:04.4]} 35... Rag8 {[%clk 0:03:06.9]} 36. Qe2 {[%clk
0:03:00.4]} 36... Rxg2+ {[%clk 0:03:01.8]} 37. Qxg2 {[%clk 0:02:58.9]} 37...
Rxg2+ {[%clk 0:03:01.7]} 38. Kxg2 {[%clk 0:02:57.6]} 38... Qg7+ {[%clk
0:03:01.6]} 39. Kh2 {[%clk 0:02:56.6]} 39... Qg4 {[%clk 0:03:01.5]} 40. Rg1
{[%clk 0:02:55.4]} 40... Qe2+ {[%clk 0:02:58]} 41. Rg2 {[%clk 0:02:54.1]} 41...
Qxe4 {[%clk 0:02:57.4]} 42. Rgc2 {[%clk 0:02:51.7]} 42... f3 {[%clk 0:02:53.9]}
43. Bf2 {[%clk 0:02:50]} 43... Bxh4 {[%clk 0:02:48.3]} 44. Rc4 {[%clk
0:02:48.2]} 44... Qe2 {[%clk 0:02:47.3]} 45. R4c2 {[%clk 0:02:46.7]} 45... Bxf2
{[%clk 0:02:23.1]} 46. Rxe2 {[%clk 0:02:38.4]} 46... fxe2 {[%clk 0:02:23]} 47.
Kg2 {[%clk 0:02:35.8]} 47... e1=Q {[%clk 0:02:21]} 48. Rxe1 {[%clk 0:02:34.7]}
48... Bxe1 {[%clk 0:02:20.9]} 49. Kf3 {[%clk 0:02:33.2]} 49... h4 {[%clk
0:02:17.8]} 50. Kg2 {[%clk 0:02:30.5]} 50... e4 {[%clk 0:02:16.3]} 51. Kh2
{[%clk 0:02:29.1]} 51... e3 {[%clk 0:02:15.2]} 52. Kg2 {[%clk 0:02:27.9]} 52...
Bg3 {[%clk 0:02:13.3]} 53. Kf3 {[%clk 0:02:26.5]} 53... h3 {[%clk 0:02:11.9]}
54. Kxg3 {[%clk 0:02:22.5]} 54... e2 {[%clk 0:02:10.9]} 55. Kf2 {[%clk
0:02:21.3]} 55... h2 {[%clk 0:02:10.2]} 56. Kxe2 {[%clk 0:02:20]} 56... h1=Q
{[%clk 0:02:09]} 57. Kd2 {[%clk 0:02:17.1]} 57... Qxd5+ {[%clk 0:02:07.9]} 58.
Ke3 {[%clk 0:02:14.6]} 58... Qd4+ {[%clk 0:02:07.1]} 59. Ke2 {[%clk 0:02:12.7]}
59... Qb4 {[%clk 0:02:07]} 60. b6 {[%clk 0:02:10.4]} 60... cxb6 {[%clk
0:02:03.1]} 61. Kd3 {[%clk 0:02:08.3]} 61... Qxb3+ {[%clk 0:02:00.4]} 62. Ke4
{[%clk 0:02:07.3]} 62... Qxa4+ {[%clk 0:01:59.3]} 63. Kd5 {[%clk 0:02:06.2]}
63... Qd4+ {[%clk 0:01:58.2]} 64. Kc6 {[%clk 0:02:05.5]} 64... c4 {[%clk
0:01:57.7]} 65. Kd7 {[%clk 0:02:03.5]} 65... c3 {[%clk 0:01:51.5]} 66. Ke6
{[%clk 0:02:02.4]} 66... c2 {[%clk 0:01:50.7]} 67. Ke7 {[%clk 0:02:01.4]} 67...
b5 {[%clk 0:01:50.1]} 68. Kd7 {[%clk 0:01:59.7]} 68... b4 {[%clk 0:01:50]} 69.
Kc6 {[%clk 0:01:58.9]} 69... b3 {[%clk 0:01:49.9]} 70. Kd7 {[%clk 0:01:57]}
70... b2 {[%clk 0:01:49.8]} 71. Kc6 {[%clk 0:01:56.4]} 71... a4 {[%clk
0:01:49.4]} 72. Kd7 {[%clk 0:01:56.3]} 72... a3 {[%clk 0:01:49.1]} 73. Kc6
{[%clk 0:01:56.2]} 73... a2 {[%clk 0:01:48.8]} 74. Kd7 {[%clk 0:01:56.1]} 74...
Qc5 {[%clk 0:01:47.8]} 75. Ke6 {[%clk 0:01:54.1]} 75... Qe5+ {[%clk 0:01:46.7]}
76. Kd7 {[%clk 0:01:53.3]} 76... d5 {[%clk 0:01:46.3]} 77. Kc6 {[%clk
0:01:52.5]} 77... d4 {[%clk 0:01:46.1]} 78. Kd7 {[%clk 0:01:51.9]} 78... d3
{[%clk 0:01:45.5]} 79. Kc6 {[%clk 0:01:51.5]} 79... d2 {[%clk 0:01:45]} 80. Kd7
{[%clk 0:01:51.1]} 80... d1=N {[%clk 0:01:43.5]} 81. Kc6 {[%clk 0:01:51]} 81...
c1=N {[%clk 0:01:42.4]} 82. Kd7 {[%clk 0:01:50.9]} 82... b1=N {[%clk 0:01:41.4]}
83. Kc6 {[%clk 0:01:50.8]} 83... a1=N {[%clk 0:01:40.6]} 84. Kb6 {[%clk
0:01:49.2]} 84... Ndc3 {[%clk 0:01:36.5]} 85. Kb7 {[%clk 0:01:48.2]} 85... Nd3
{[%clk 0:01:35.9]} 86. Ka7 {[%clk 0:01:47]} 86... Na3 {[%clk 0:01:35.6]} 87. Kb7
{[%clk 0:01:45.8]} 87... Nb3 {[%clk 0:01:35.3]} 88. Ka7 {[%clk 0:01:44.7]} 88...
Na4 {[%clk 0:01:31.4]} 89. Kb7 {[%clk 0:01:43.5]} 89... Nb4 {[%clk 0:01:29.4]}
90. Ka8 {[%clk 0:01:42.2]} 90... Nbc5 {[%clk 0:01:20.4]} 91. Ka7 {[%clk
0:01:41.1]} 91... Nb5+ {[%clk 0:01:18.8]} 92. Ka8 {[%clk 0:01:39.6]} 92... Nb6#
{[%clk 0:01:16.2]} 0-1

[Event "Live Chess"]
[Site "Chess.com"]
[Date "2023.05.21"]
[Round "-"]
[White "Long1968"]
[Black "McSlash1"]
[Result "0-1"]
[WhiteElo "954"]
[BlackElo "2004"]
[TimeControl "300"]
[EndTime "5:17:54 PDT"]
[Termination "McSlash1 won on time"]

1. e4 {[%clk 0:04:58.3]} 1... c5 {[%clk 0:04:59.3]} 2. c3 {[%clk 0:04:55.4]}
2... d5 {[%clk 0:04:58.4]} 3. exd5 {[%clk 0:04:52.9]} 3... Qxd5 {[%clk
0:04:58.3]} 4. d4 {[%clk 0:04:51.1]} 4... cxd4 {[%clk 0:04:58.2]} 5. cxd4 {[%clk
0:04:49.2]} 5... Nf6 {[%clk 0:04:57.3]} 6. Nc3 {[%clk 0:04:45.9]} 6... Qd8
{[%clk 0:04:56.9]} 7. Nf3 {[%clk 0:04:43.3]} 7... Bf5 {[%clk 0:04:56.4]} 8. Be2
{[%clk 0:04:38.7]} 8... e6 {[%clk 0:04:55.1]} 9. Ne5 {[%clk 0:04:33]} 9... Nbd7
{[%clk 0:04:53.1]} 10. Bb5 {[%clk 0:04:27.3]} 10... Be7 {[%clk 0:04:51.8]} 11.
Qa4 {[%clk 0:04:19.3]} 11... O-O {[%clk 0:04:51.1]} 12. Nxd7 {[%clk 0:04:13.1]}
12... a6 {[%clk 0:04:49.4]} 13. Nxf6+ {[%clk 0:04:09.1]} 13... Bxf6 {[%clk
0:04:49.3]} 14. Be2 {[%clk 0:03:47.4]} 14... b5 {[%clk 0:04:45.6]} 15. Qd1
{[%clk 0:03:38.8]} 15... Qxd4 {[%clk 0:04:42.5]} 16. Be3 {[%clk 0:03:29.4]}
16... Qb4 {[%clk 0:04:38.1]} 17. Bd2 {[%clk 0:03:10.1]} 17... Qxb2 {[%clk
0:04:35.1]} 18. O-O {[%clk 0:02:59.2]} 18... Bxc3 {[%clk 0:04:32.2]} 19. Bxc3
{[%clk 0:02:50.9]} 19... Qxc3 {[%clk 0:04:32.1]} 20. Rc1 {[%clk 0:02:47.4]}
20... Qf6 {[%clk 0:04:26.7]} 21. g4 {[%clk 0:02:31.1]} 21... Bg6 {[%clk
0:04:24.1]} 22. f4 {[%clk 0:02:20.1]} 22... Rfd8 {[%clk 0:04:21]} 23. Qb3 {[%clk
0:02:08.6]} 23... Rd2 {[%clk 0:04:13.6]} 24. Rf2 {[%clk 0:01:49.5]} 24... Qd4
{[%clk 0:04:10.8]} 25. Re1 {[%clk 0:01:33.4]} 25... Rd8 {[%clk 0:04:06]} 26. f5
{[%clk 0:01:21.6]} 26... exf5 {[%clk 0:04:02.1]} 27. Qf3 {[%clk 0:00:46.6]}
27... fxg4 {[%clk 0:03:58.4]} 28. Qxg4 {[%clk 0:00:36.8]} 28... Qxg4+ {[%clk
0:03:53.3]} 29. Bxg4 {[%clk 0:00:33.3]} 29... Rxf2 {[%clk 0:03:52.2]} 30. Kxf2
{[%clk 0:00:31]} 30... h5 {[%clk 0:03:51.9]} 31. Bf3 {[%clk 0:00:23.2]} 31...
Rd2+ {[%clk 0:03:50.7]} 32. Re2 {[%clk 0:00:18.6]} 32... Rxe2+ {[%clk
0:03:48.5]} 33. Kxe2 {[%clk 0:00:14.9]} 33... b4 {[%clk 0:03:48]} 34. Bb7 {[%clk
0:00:09.3]} 34... a5 {[%clk 0:03:43.5]} 35. Ke3 {[%clk 0:00:07.1]} 35... Bb1
{[%clk 0:03:42.9]} 36. Bd5 {[%clk 0:00:03.4]} 36... a4 {[%clk 0:03:41.9]} 37.
Kd4 {[%clk 0:00:00.3]} 37... a3 {[%clk 0:03:40.6]} 0-1